Cogmind - Beta 15 @@@ ROGUE MODE // 2025.06.21 @ 17:40:24 // AFD2020/Player2 Player: Demo Result: Destroyed by as-41432 with Assembled Shotgun Performance ------------- Evolutions (3) 1500 Regions Visited (12) 2400 Robots Destroyed (161) 805 Value Destroyed (4671) 4671 Prototype IDs (58) 1160 Alien Tech Used (0) 0 Bonus (4406) 4406 TOTAL SCORE: 14942 Bonus ------- Triggered High Security 500 High Alert Combat Kills 850 Follower Combat Kills 1947 Aligned with FarCom 300 Met Imprinter 300 Destroyed Z-Imprinter 1000 Triggered Deep Caves Wall 500 Exposed GOLEM Chamber 500 Friendly Fire -1491 Cogmind --------- Core Integrity 0/700 Matter 288/300 Energy 126/1300 System Corruption 43% Temperature Cool (0) Movement Core (350) Ox6 Location -7/Deep Caves Parts ------- > --- POWER (3) -------- (None) > --- PROPULSION (2) --- (None) > --- UTILITY (6) ------ Experimental Heat Sink Zionite Biocell Zionite Biocell > --- WEAPON (2) ------- Antimatter Cannon Heavy Proton Missile Launcher > --- INVENTORY (5) ---- Wheel Antimatter Cannon Peak State ------------ > --- POWER ------------ Reinforced Deuterium Engine Zionite Light DM Reactor Zionite Light DM Reactor > --- PROPULSION ------- Armored Huge Wheel > --- UTILITY ---------- Experimental Heat Sink Improved Cooling System Zionite Biocell Zionite Biocell Powered Armor Remote Shield > --- WEAPON ----------- Latent Energy Streamer Antimatter Cannon > --- INVENTORY -------- Improved Deuterium Engine Wheel Remote Force Field Antimatter Cannon Heavy Proton Missile Launcher [Rating: 78] Favorites ----------- Power Reinforced Deuterium Engine Engine Reinforced Deuterium Engine Power Core Enhanced Nuclear Core Reactor Zionite Light DM Reactor Propulsion Wheel Treads Light Treads Wheel Wheel Utility Light Humpback Device Improved Cooling System Storage Light Humpback Processor Advanced Visual Processing Unit Hackware Hacking Suite Protection Improved Utility Shielding Weapon Antimatter Cannon Energy Gun Spread Laser Energy Cannon Heavy Particle Cannon Ballistic Gun Improved Assault Rifle Ballistic Cannon Antimatter Cannon Launcher Heavy Proton Missile Launcher Special Weapon Plasma Cutter Slashing Weapon Master Tearclaws Special Melee Weapon Improved Datajack Build | -11 -10 -10 -9 -9 -9 -8 -8 -7 -7 -7 -7 -7 ------- Run | Yrd Mat Min Mat Min Exi Min Mat Fac Low Low Zio Dee Slots Evolved 6 | . . . 2 . . . 2 2 . . . . Power 2 | . . . . . . . 1 1 . . . . Propulsion . | . . . . . . . . . . . . . Utility 4 | . . . 2 . . . 1 1 . . . . Weapon . | . . . . . . . . . . . . . Parts Attached 105 | 8 6 3 21 . 5 . 8 38 1 2 5 8 Power 12 | 1 1 . 1 . 1 . 1 4 . . . 3 Engine 9 | 1 1 . 1 . 1 . 1 3 . . . 1 Core 1 | . . . . . . . . 1 . . . . Reactor 2 | . . . . . . . . . . . . 2 Propulsion 15 | 2 . 2 5 . 1 . 2 3 . . . . Treads 1 | 1 . . . . . . . . . . . . Leg . | . . . . . . . . . . . . . Wheel 14 | 1 . 2 5 . 1 . 2 3 . . . . Hover . | . . . . . . . . . . . . . Flight . | . . . . . . . . . . . . . Utility 45 | 2 2 1 9 . 1 . 3 18 . 2 2 5 Device 12 | 1 . . . . . . 1 6 . 1 1 2 Storage 12 | 1 2 . 1 . 1 . . 5 . . . 2 Processor 1 | . . . . . . . . 1 . . . . Hackware 2 | . . . . . . . . 2 . . . . Protection 18 | . . 1 8 . . . 2 4 . 1 1 1 Artifact . | . . . . . . . . . . . . . Weapon 33 | 3 3 . 6 . 2 . 2 13 1 . 3 . Energy Gun 10 | 2 . . 2 . 1 . 1 4 . . . . Energy Cannon 4 | . . . 1 . . . 1 2 . . . . Ballistic Gun 5 | 1 2 . 1 . . . . 1 . . . . Ballistic Cannon 5 | . . . . . . . . 4 1 . . . Launcher 4 | . 1 . 2 . . . . 1 . . . . Special Weapon 1 | . . . . . . . . . . . 1 . Impact Weapon . | . . . . . . . . . . . . . Slashing Weapon 2 | . . . . . . . . . . . 2 . Piercing Weapon . | . . . . . . . . . . . . . Special Melee Weapon 2 | . . . . . 1 . . 1 . . . . Unidentified Prototypes 18 | . 1 . 4 . . . . 9 . . 1 3 Corrupted Parts 2 | . . . . . . . . 1 . . 1 . System Corruption 8 | . . . . . . . . 3 . . 5 . Parts Lost 13 | . . . 1 . . . 1 . . 1 . 10 Power 5 | . . . . . . . . . . 1 . 4 Propulsion 2 | . . . 1 . . . . . . . . 1 Utility 4 | . . . . . . . . . . . . 4 Weapon 2 | . . . . . . . 1 . . . . 1 Highest Loss Streak 10 | . . . 1 . . . 1 . . 1 . 10 To Critical Strikes . | . . . . . . . . . . . . . Average Backups 18 | 2 11 14 14 15 19 21 21 21 23 22 23 17 Power 1 | . . . . 3 2 3 2 1 1 . . . Propulsion 2 | 1 3 4 2 2 1 1 2 2 3 3 3 2 Utility 6 | . 4 5 4 4 6 8 8 9 8 8 8 6 Weapon 5 | . 3 4 4 4 6 6 5 5 8 7 8 5 Tool/Special . | . . . . . . . . . . . . . Unused Backups 38 | . 9 2 6 . 3 . 2 8 . 2 1 5 Power 4 | . . . 1 . . . . 3 . . . . Propulsion 10 | . 3 . 2 . 3 . . 1 . . . 1 Utility 17 | . 6 . 1 . . . 2 3 . 2 . 3 Weapon 7 | . . 2 2 . . . . 1 . . 1 1 Tool/Special . | . . . . . . . . . . . . . Average Slot Usage (%) 88 | . 100 100 98 100 78 88 89 90 84 83 76 84 Engine 15 | . 14 14 10 11 11 11 18 17 15 17 23 18 Core 1 | . . . . . . . . 5 7 4 . . Treads 1 | . 14 14 1 . . . . . . . . . Wheel 13 | . 14 14 20 22 22 22 18 14 7 7 7 6 Device 9 | . 14 2 . . . . 8 12 15 15 15 17 Storage 9 | . 14 14 11 11 11 11 9 7 7 7 7 8 Protection 17 | . . 11 32 33 24 22 17 9 15 14 14 11 Energy Gun 3 | . 10 . 6 11 2 10 9 4 . . . . Ballistic Gun 5 | . 16 28 13 11 . 10 8 . . . . . Ballistic Cannon 3 | . . . . . . . . 4 13 7 . 8 Launcher 1 | . . . 1 . . . . . 1 7 . 2 Special Melee Weapon 1 | . . . . . 7 . . . . . . 2 Peak Build Rating 78 | 7 13 14 23 23 37 27 41 63 64 73 67 78 Average Rating 41 | 5 9 13 20 23 23 26 34 48 63 63 61 63 On Entrance 30 | . 7 13 14 23 23 23 27 32 63 64 48 58 Naked Turns . | . . . . . . . . . . . . . Heaviest Build 128 | 13 35 39 54 50 86 67 80 116 117 117 112 128 Greatest Support 28 | 10 10 10 20 20 22 22 22 28 28 28 28 28 Greatest Overweight (x) 8 | 1 3 3 5 2 3 3 3 8 4 4 3 4 Average Overweight (x) 2 | . 1 3 2 2 2 2 3 3 4 3 3 3 Largest Inventory Capacity 25 | 8 15 15 15 15 25 25 25 25 25 25 25 25 Average Capacity 20 | 7 12 15 15 15 21 25 25 25 25 25 25 20 Most Carried 25 | 8 15 15 15 15 25 25 25 25 25 25 25 25 Average Carried 19 | 2 11 14 14 15 21 24 24 24 25 24 24 19 Final Capacity 25 | 8 15 15 15 15 25 25 25 25 25 25 25 5 Final Carried 25 | 8 15 15 15 15 25 25 25 25 25 25 25 2 Class Distribution -------------------- 91% | Mutant 4% | Hacker-Mutant 4% | Trapper-Mutant Dominant Class ---------------- Mutant | -10/Materials Mutant | -10/Mines Mutant | -9/Materials Mutant | -9/Mines Mutant | -9/Exiles Mutant | -8/Mines Mutant | -8/Materials Mutant | -7/Factory Mutant | -7/Lower Caves Mutant | -7/Lower Caves Mutant | -7/Zion Mutant | -7/Deep Caves Resources | -11 -10 -10 -9 -9 -9 -8 -8 -7 -7 -7 -7 -7 ----------- Run | Yrd Mat Min Mat Min Exi Min Mat Fac Low Low Zio Dee Matter Collected 5152 | 381 403 95 1266 60 152 77 151 887 416 241 36 987 Remotely . | . . . . . . . . . . . . . Salvage Created 6268 | 185 337 70 1554 237 . 75 153 1443 409 210 . 1595 Parts 316 | 17 14 6 110 24 . 5 17 73 16 9 . 25 Haulers Intercepted 9 | . 2 . 6 . . . . 1 . . . . Recyclers Shooed 6 | . 1 . 2 . . . . 3 . . . . Parts Field Recycled . | . . . . . . . . . . . . . Retrieved Matter . | . . . . . . . . . . . . . Parts Self-Destructed 8 | . . . . . . . . . 6 2 . . Prevented 16 | . . . . . . . . . 9 7 . . Kills | -11 -10 -10 -9 -9 -9 -8 -8 -7 -7 -7 -7 -7 ------- Run | Yrd Mat Min Mat Min Exi Min Mat Fac Low Low Zio Dee Combat Hostiles Destroyed 127 | . 7 2 32 8 . 2 5 25 11 4 . 31 Guns 29 | . 3 2 10 8 . . 1 5 . . . . Cannons 21 | . . . . . . . . 12 4 . . 5 AOE 66 | . 4 . 22 . . 2 4 7 7 2 . 18 Classes Destroyed 22 | 3 4 . 6 . . . . 4 . 1 . 4 Worker 20 | 2 2 2 7 . . 4 2 1 . . . . Builder 5 | . . . 1 3 . . . 1 . . . . Tunneler 6 | 4 . . 1 . . . . 1 . . . . Hauler 9 | . 2 . 6 . . . . 1 . . . . Recycler 6 | 1 1 . 2 . . . . 2 . . . . Mechanic 1 | . . . . . . . . 1 . . . . Operator 3 | . . . 3 . . . . . . . . . Watcher 2 | . 1 . 1 . . . . . . . . . Swarmer 27 | . 4 2 2 5 . 2 4 4 4 . . . Grunt 43 | . 3 . 19 3 . . 1 10 5 2 . . Brawler 3 | . . . 2 . . . . . . 1 . . Duelist 2 | . . . 2 . . . . . . . . . Protector 5 | . . . 3 . . . . 2 . . . . Sentry 7 | . . . 5 . . . . 1 1 . . . Specialist 3 | . . . . . . . . 3 . . . . Hunter 1 | . . . . . . . . 1 . . . . Programmer 5 | . . . . . . . . 4 1 . . . Z-Light 8 | . . . . . . . . . . . . 8 Master Thief 1 | . . . . . . . . . . 1 . . Assembler 1 | . . . . . . . . . . . . 1 Assembled 17 | . . . . . . . . . . . . 17 Golem 5 | . . . . . . . . . . . . 5 Thug 1 | . . . . . . . . . . . . 1 Best Kill Streak 23 | 5 5 2 16 4 . 2 4 13 4 3 . 23 Combat Bots Only 22 | . 3 2 13 3 . 2 4 9 4 3 . 22 Max Kills in Single Turn 8 | 2 2 1 5 1 . 2 4 7 2 1 . 8 Gunslinging . | . . . . . . . . . . . . . Exploded 8 | . 2 . 4 . . 2 4 4 2 1 . 8 Melee . | . . . . . . . . . . . . . Uniques/NPCs Destroyed 1 | . . . . . . . . . . . . 1 Z-Imprinter (-7/Deep Caves) Combat | -11 -10 -10 -9 -9 -9 -8 -8 -7 -7 -7 -7 -7 -------- Run | Yrd Mat Min Mat Min Exi Min Mat Fac Low Low Zio Dee Hostile Shots Fired 465 | . 26 16 58 22 . . 19 143 29 17 . 135 Missed 156 | . 9 3 17 6 . . 4 51 10 9 . 47 Hits 309 | . 17 13 41 16 . . 15 92 19 8 . 88 Melee 6 | . . . . . . . . . . 3 . 3 Projectile 303 | . 17 13 41 16 . . 15 92 19 5 . 85 Critical Strikes 8 | . . . 2 . . . 1 4 . . . 1 Damage Taken 4785 | . 206 101 624 149 . 44 236 994 224 257 . 1950 Core 830 | . 104 29 53 12 . . 92 93 10 . . 437 Absorbed by Shields 936 | . . . . . . . 72 283 194 89 . 298 Redirected to Shielding 183 | . . . . . . . 7 120 37 . . 19 Ignored by Resistances 65 | . . . 41 20 . . 4 . . . . . Regen/Repaired (Parts) 38 | . . . 38 . . . . . . . . . Core Remaining (%) 65 | 100 . 30 . . . 48 83 . . . . . Volleys Fired 373 | 18 27 9 105 20 . 11 19 68 21 20 . 55 Largest 2 | 2 2 2 2 2 . 2 2 2 2 1 . 2 Hottest 140 | 100 70 46 88 88 . 88 88 140 66 40 . 93 Shots Fired 634 | 36 47 18 194 40 . 21 24 136 35 21 . 62 Gun 394 | 36 40 18 173 40 . 20 23 44 . . . . Cannon 189 | . . . . . . . 1 92 28 10 . 58 Launcher 51 | . 7 . 21 . . 1 . . 7 11 . 4 Special . | . . . . . . . . . . . . . Kinetic 374 | 17 23 18 144 20 . 10 18 58 28 10 . 28 Thermal 165 | 19 17 . 29 20 . 10 5 65 . . . . Explosive 29 | . 7 . 21 . . 1 . . . . . . Electromagnetic 66 | . . . . . . . 1 13 7 11 . 34 Robot Hit Streak 15 | 5 5 3 12 9 . 11 6 15 3 6 . 11 Robot Miss Streak 14 | 5 2 3 8 10 . 6 7 13 4 2 . 14 Penetration Max . | . . . . . . . . . . . . . Secondary Targets 3 | . . . 1 2 . . . . . . . . Max Gunslinging Chain 1 | . . . 1 1 . . . . . . . . Autonomous 12 | . . . . . . . . 12 . . . . Shots Hit Robots 387 | 15 26 9 121 29 12 11 15 95 13 12 . 29 Core Hits 468 | 8 19 4 119 33 . 15 14 67 15 8 . 166 Critical Kills . | . . . . . . . . . . . . . Critical Parts Destroyed 2 | . . . 2 . . . . . . . . . Critical Strikes 8 | . 1 . 2 . . . . 4 1 . . . Burn 1 | . 1 . . . . . . . . . . . Destroy 2 | . . . 2 . . . . . . . . . Blast 4 | . . . . . . . . 3 1 . . . Corrupt 1 | . . . . . . . . 1 . . . . Melee Attacks 13 | . . . . . 12 . . . . . . 1 Impact . | . . . . . . . . . . . . . Slashing . | . . . . . . . . . . . . . Piercing . | . . . . . . . . . . . . . Sneak Attacks 12 | . . . . . 11 . . . . . . 1 Combat Hostiles . | . . . . . . . . . . . . . Follow-up Attacks . | . . . . . . . . . . . . . Damage Inflicted 17050 | 198 795 149 4028 416 . 190 594 4465 1081 991 . 4143 Guns 4105 | 198 385 149 1786 416 . 116 228 827 . . . . Cannons 3342 | . . . . . . . . 1977 510 215 . 640 Explosions 9603 | . 410 . 2242 . . 74 366 1661 571 776 . 3503 Melee . | . . . . . . . . . . . . . Ramming . | . . . . . . . . . . . . . Kinetic 4759 | 88 228 149 1393 178 . 42 166 1300 510 215 . 490 Thermal 3253 | 110 157 . 393 238 . 74 62 1597 102 200 . 320 Explosive 2726 | . 410 . 2242 . . 74 . . . . . . Electromagnetic 6312 | . . . . . . . 366 1568 469 576 . 3333 Impact . | . . . . . . . . . . . . . Slashing . | . . . . . . . . . . . . . Piercing . | . . . . . . . . . . . . . Highest Corruption 43 | . . . 1 1 1 1 3 9 9 10 15 43 Average Corruption 6 | . . . 1 1 1 1 3 4 9 9 15 12 Corruption Purged . | . . . . . . . . . . . . . Corruption Blocked . | . . . . . . . . . . . . . Effects 139 | . . . 3 1 6 1 5 25 20 19 2 57 Message Errors 20 | . . . . . 1 1 1 5 6 1 . 5 Matter Fused 33 | . . . 2 . 2 . 1 5 4 9 . 10 Heat Flow Errors 13 | . . . . . . . 2 . 3 1 . 7 Energy Discharges 20 | . . . 1 . . . 1 8 3 1 . 6 Parts Rejected 2 | . . . . . . . . 1 . 1 . . Parts Fused 2 | . . . . . . . . . . . . 2 Data Loss (minor) 25 | . . . . 1 2 . . 4 3 3 1 11 Data Loss (major) 10 | . . . . . . . . 1 . 2 . 7 Misfires 7 | . . . . . . . . . 1 1 . 5 Alerts 2 | . . . . . 1 . . . . . 1 . Weapon Failures 5 | . . . . . . . . 1 . . . 4 Overload Shots . | . . . . . . . . . . . . . Overflow Damage 291 | . 34 . . . . . 11 81 61 12 . 92 Projectiles 120 | . . . . . . . . 56 28 . . 36 Explosions 171 | . 34 . . . . . 11 25 33 12 . 56 Melee . | . . . . . . . . . . . . . Knockbacks 10 | . . . . . . . . 5 1 1 . 3 Impact . | . . . . . . . . . . . . . Kinetic 10 | . . . . . . . . 5 1 1 . 3 Secondary . | . . . . . . . . . . . . . Self-Inflicted Damage 405 | . 39 . 29 . . 44 . . 30 164 . 99 Shots 14 | . 1 . 2 . . 1 . . 1 5 . 4 Rammed . | . . . . . . . . . . . . . Targets Rammed . | . . . . . . . . . . . . . Kicked . | . . . . . . . . . . . . . Crushed . | . . . . . . . . . . . . . Highest Temperature 402 | 24 11 58 291 186 . 75 246 168 258 167 . 402 Average Temperature 74 | 16 5 21 84 55 . 26 92 55 70 54 . 82 Received Heat Transfer 910 | . 30 . 270 54 . . 82 247 61 6 . 160 Siege Activations . | . . . . . . . . . . . . . Martial Activations . | . . . . . . . . . . . . . Shielding Activations . | . . . . . . . . . . . . . Robots Disrupted . | . . . . . . . . . . . . . Combat Hostiles . | . . . . . . . . . . . . . Robots Corrupted 12 | . . . . . . . . 2 . 2 . 8 Combat Hostiles 11 | . . . . . . . . 1 . 2 . 8 Parts Fried 40 | . . . . . . . 1 11 1 2 . 25 Impact Corruptions . | . . . . . . . . . . . . . Robots Melted . | . . . . . . . . . . . . . Combat Hostiles . | . . . . . . . . . . . . . Parts Melted 10 | 1 2 . . . . . 1 5 1 . . . Heat Transferred 4472 | 333 527 . 495 305 . 74 75 2048 100 206 . 309 Parts Sabotaged . | . . . . . . . . . . . . . Parts Stolen 1 | . . . . . . . . . . 1 . . Parts Stripped . | . . . . . . . . . . . . . Power Chain Reactions 11 | . . . . . . . . 2 4 1 . 4 Latent Energy Used 2483 | . . . . . . . 200 400 . . . 1883 LE Corruption 52 | . . . . . . . 3 6 . . . 43 Alert | -11 -10 -10 -9 -9 -9 -8 -8 -7 -7 -7 -7 -7 ------- Run | Yrd Mat Min Mat Min Exi Min Mat Fac Low Low Zio Dee Maximum Alert Level 5 | . . . 3 2 . . 1 5 . . . . Low Security (%) 38 | 100 100 100 7 . . 100 38 29 . . . . Level 1 22 | . . . 41 . . . 61 23 . . . . Level 2 19 | . . . 15 99 . . . 15 . . . . Level 3 12 | . . . 34 . . . . 5 . . . . Level 4 5 | . . . . . . . . 19 . . . . Level 5 . | . . . . . . . . 1 . . . . High Security 1 | . . . . . . . . 4 . . . . Max Security . | . . . . . . . . . . . . . Peak Influence 1874 | 10 193 122 939 584 . 147 255 1874 . . . . Initial 357 | . . 44 . 357 . . 35 94 . . . . Average 406 | 2 102 49 512 499 . 113 176 617 . . . . Influence Increases 6202 | 35 425 120 1713 391 . 192 363 2350 489 124 . . Destroy 0b10 Robot/C 2980 | . 200 60 800 260 . 80 160 1000 340 80 . . Destroy 0b10 Robot/NC 440 | 35 50 15 150 15 . 25 15 135 . . . . Destroy Leader 612 | . 50 10 218 40 . 10 32 192 40 20 . . Allied During Kill 995 | . 68 20 309 76 . 27 49 313 109 24 . . Successful Hack 150 | . 32 . 47 . . . 30 41 . . . . Disable Machine 450 | . . 15 45 . . 45 30 315 . . . . Anti-Garrison Action 200 | . . . . . . . . 200 . . . . Destroy Structure 345 | . 25 . 129 . . 5 47 139 . . . . Partial Spotted 15 | . . . 15 . . . . . . . . . Lose Combat Pursuer 15 | . . . . . . . . 15 . . . . Influence Decreases 6202 | 35 311 234 795 863 446 100 247 684 997 528 962 . Entered New Map 3165 | . . 70 . 561 446 . 57 114 695 260 962 . Time Decay 2757 | 35 311 164 575 302 . 100 180 550 302 238 . . Lost Part 70 | . . . 30 . . . 10 20 . 10 . . Lost Ally 60 | . . . 40 . . . . . . 20 . . Purge Threat 150 | . . . 150 . . . . . . . . . Squads Dispatched 23 | . 1 . 8 . . . 1 13 . . . . Investigation 5 | . . . 1 . . . 1 3 . . . . Extermination 2 | . . . . . . . . 2 . . . . Reinforcement 11 | . 1 . 3 . . . . 7 . . . . Assault 5 | . . . 4 . . . . 1 . . . . Garrison . | . . . . . . . . . . . . . Intercept . | . . . . . . . . . . . . . Searches Triggered . | . . . . . . . . . . . . . Construction Impeded 2 | . . . . . . . . 2 . . . . Haulers Reinforced 2 | . . . . . . . . 2 . . . . Active Scanning Responses . | . . . . . . . . . . . . . Cargo Convoy Interrupts 1 | . . . . . . . . 1 . . . . Stealth | -11 -10 -10 -9 -9 -9 -8 -8 -7 -7 -7 -7 -7 --------- Run | Yrd Mat Min Mat Min Exi Min Mat Fac Low Low Zio Dee Distress Signals 8 | . 1 . 4 . . . . 3 . . . . Communications Jammed . | . . . . . . . . . . . . . Distress Signals . | . . . . . . . . . . . . . Times Spotted 254 | . 14 3 60 12 . 4 11 56 15 8 . 71 Peak Tracking Total 28 | . 4 3 8 3 . 4 4 11 5 4 . 28 Tactical Retreats 2 | . . . . . . . . 1 . . . 1 Traps | -11 -10 -10 -9 -9 -9 -8 -8 -7 -7 -7 -7 -7 ------- Run | Yrd Mat Min Mat Min Exi Min Mat Fac Low Low Zio Dee Traps Triggered 5 | . . . 2 . . . 1 1 . . . 1 Indirectly . | . . . . . . . . . . . . . Trap Hack Attempts 30 | . . . . . . . . 30 . . . . Triggered . | . . . . . . . . . . . . . Disarmed . | . . . . . . . . . . . . . Reprogrammed 11 | . 4 . . . . . . 7 . . . . Reused 5 | . . . . . . . . . . . . 5 Traps Extracted 7 | . . . . . . . . 7 . . . . Installed 10 | . . . . . . . . . . . . 10 Triggered . | . . . . . . . . . . . . . Fabricated Traps 4 | . . . . . . . . . . . . 4 Most Traps Carried 7 | . . . . . . . . 7 6 6 6 7 Machines | -11 -10 -10 -9 -9 -9 -8 -8 -7 -7 -7 -7 -7 ---------- Run | Yrd Mat Min Mat Min Exi Min Mat Fac Low Low Zio Dee Machines Disabled 36 | . . 1 4 . . 3 2 21 1 . 3 1 Max in Single Turn 2 | . . 1 1 . . 2 1 1 . . 1 1 Garrison Access 1 | . . . . . . . . 1 . . . . Machines Repaired . | . . . . . . . . . . . . . Machines Dismantled 3 | . . . . . . . . . . . 3 . Machines Sabotaged . | . . . . . . . . . . . . . Overloaded Fab Kills . | . . . . . . . . . . . . . Hacking | -11 -10 -10 -9 -9 -9 -8 -8 -7 -7 -7 -7 -7 --------- Run | Yrd Mat Min Mat Min Exi Min Mat Fac Low Low Zio Dee Machines Accessed 32 | . 9 1 11 . 2 . 1 8 . . . . Terminals 21 | . 8 . 9 . . . 1 3 . . . . Fabricators 1 | . . . . . . . . 1 . . . . Repair Stations 1 | . . . 1 . . . . . . . . . Recycling Units 3 | . 1 . . . . . . 2 . . . . Scanalyzers 2 | . . . 1 . . . . 1 . . . . Garrison Access 1 | . . . . . . . . 1 . . . . Total Hacks 103 | . 31 1 36 . 2 . 3 30 . . . . Successful 52 | . 15 1 16 . 2 . 2 16 . . . . Failed 50 | . 15 . 20 . . . 1 14 . . . . Catastrophic 5 | . 2 . 3 . . . . . . . . . Database Lockouts 1 | . 1 . . . . . . . . . . . Manual 61 | . 18 . 21 . 1 . 3 18 . . . . Terminals 76 | . 30 . 28 . . . 3 15 . . . . Fabricators 3 | . . . . . . . . 3 . . . . Repair Stations 7 | . . . 7 . . . . . . . . . Recycling Units 5 | . 1 . . . . . . 4 . . . . Scanalyzers 6 | . . . 1 . . . . 5 . . . . Garrison Access 3 | . . . . . . . . 3 . . . . Terminal Hacks 23 | . 8 1 8 . 2 . . 4 . . . . Record 1 | . . . . . 1 . . . . . . . Part Schematic 2 | . 1 . 1 . . . . . . . . . Prototype ID Bank 2 | . . . 2 . . . . . . . . . Open Door 1 | . . 1 . . . . . . . . . . Terminal Index 1 | . . . . . . . . 1 . . . . Unreport Threat 1 | . . . 1 . . . . . . . . . Locate Traps 9 | . 5 . 3 . . . . 1 . . . . Reprogram Traps 1 | . 1 . . . . . . . . . . . Security Status 1 | . . . . . . . . 1 . . . . Recall Investigation 1 | . . . . . . . . 1 . . . . Registered Components 1 | . 1 . . . . . . . . . . . Zone Layout 1 | . . . 1 . . . . . . . . . Proto ID Catalog 1 | . . . . . 1 . . . . . . . Fabricator Hacks 1 | . . . . . . . . 1 . . . . Network Status 1 | . . . . . . . . 1 . . . . Repair Station Hacks 5 | . . . 5 . . . . . . . . . Scan Component 3 | . . . 3 . . . . . . . . . Repair 2 | . . . 2 . . . . . . . . . Recycling Unit Hacks . | . . . . . . . . . . . . . Scanalyzer 3 | . . . . . . . . 3 . . . . Insert Component 2 | . . . . . . . . 2 . . . . Analyze 1 | . . . . . . . . 1 . . . . Garrison Access Hacks . | . . . . . . . . . . . . . Unauthorized Hacks 20 | . 7 . 3 . . . 2 8 . . . . Terminals 15 | . 7 . 3 . . . 2 3 . . . . Track 1 | . 1 . . . . . . . . . . . Assimilate 3 | . 1 . 1 . . . 1 . . . . . Botnet 9 | . 4 . 2 . . . 1 2 . . . . Disrupt 1 | . 1 . . . . . . . . . . . Operators 1 | . . . . . . . . 1 . . . . Fabricators 2 | . . . . . . . . 2 . . . . Report 1 | . . . . . . . . 1 . . . . Fabnet 1 | . . . . . . . . 1 . . . . Repair Stations . | . . . . . . . . . . . . . Recycling Units 2 | . . . . . . . . 2 . . . . Recyclers 1 | . . . . . . . . 1 . . . . Mask 1 | . . . . . . . . 1 . . . . Scanalyzers . | . . . . . . . . . . . . . Garrison Access 1 | . . . . . . . . 1 . . . . Jam 1 | . . . . . . . . 1 . . . . Data Cores Recovered 1 | . . . 1 . . . . . . . . . Used . | . . . . . . . . . . . . . Hacking Detections 28 | . 9 . 10 . . . 1 8 . . . . Full Trace Events 3 | . . . 1 . . . . 2 . . . . Feedback Events . | . . . . . . . . . . . . . Feedback Blocked . | . . . . . . . . . . . . . Robot Schematics Acquired . | . . . . . . . . . . . . . Robots Built . | . . . . . . . . . . . . . Authchips . | . . . . . . . . . . . . . Time . | . . . . . . . . . . . . . Total Robot Build Rating . | . . . . . . . . . . . . . Part Schematics Acquired 3 | . 1 . 1 . . . . 1 . . . . Parts Built . | . . . . . . . . . . . . . Authchips . | . . . . . . . . . . . . . Time . | . . . . . . . . . . . . . Total Part Build Rating . | . . . . . . . . . . . . . Parts Repaired 2 | . . . 2 . . . . . . . . . Time 102 | . . . 102 . . . . . . . . . Parts Recycled . | . . . . . . . . . . . . . Recycled Matter . | . . . . . . . . . . . . . Retrieved Matter . | . . . . . . . . . . . . . Retrieved Components . | . . . . . . . . . . . . . Parts Scanalyzed 2 | . . . . . . . . 2 . . . . Part Schematics Acquired 1 | . . . . . . . . 1 . . . . Parts Damaged . | . . . . . . . . . . . . . Bothacking | -11 -10 -10 -9 -9 -9 -8 -8 -7 -7 -7 -7 -7 ------------ Run | Yrd Mat Min Mat Min Exi Min Mat Fac Low Low Zio Dee Used RIF Installer . | . . . . . . . . . . . . . Robots Hacked 10 | . . . . . 9 . . . . . . 1 Non-combat 3 | . . . . . 3 . . . . . . . Combat 7 | . . . . . 6 . . . . . . 1 Robot Hacks Applied 11 | . . . . . 10 . . . . . . 1 parse_system 11 | . . . . . 10 . . . . . . 1 Relay Couplers Released . | . . . . . . . . . . . . . Fabnet Peak Effective % . | . . . . . . . . . . . . . Robots Rewired 1 | . . . . . . . . . 1 . . . Allies Hacked . | . . . . . . . . . . . . . Hacks Repelled . | . . . . . . . . . . . . . Allies | -11 -10 -10 -9 -9 -9 -8 -8 -7 -7 -7 -7 -7 -------- Run | Yrd Mat Min Mat Min Exi Min Mat Fac Low Low Zio Dee Total Allies 9 | . 2 3 . . . . 1 . 1 . 2 . Largest Group 4 | . 2 4 4 1 1 1 2 2 2 2 3 3 Highest-Rated Group 184 | . 70 103 105 72 72 72 104 122 132 132 184 184 Highest-Rated Ally 111 | . 61 63 72 72 72 72 78 103 102 102 102 111 Total Orders . | . . . . . . . . . . . . . Ally Attacks 344 | . 32 2 97 18 . 2 22 73 16 11 . 71 Total Damage 13384 | . 284 44 1431 228 . 124 290 4242 1137 788 . 4816 Kills 142 | . 8 2 17 5 . 3 4 46 6 3 . 48 Allies Corrupted . | . . . . . . . . . . . . . Allies Melted 1 | . . . . . . . . . 1 . . . Intel | -11 -10 -10 -9 -9 -9 -8 -8 -7 -7 -7 -7 -7 ------- Run | Yrd Mat Min Mat Min Exi Min Mat Fac Low Low Zio Dee Active Infowar (turns) 1272 | 45 855 56 . . . . . 316 . . . . Optics 45 | . . . . . . . . 45 . . . . Traps 316 | . . . . . . . . 316 . . . . Seismic 956 | 45 855 56 . . . . . . . . . . Robot Analysis Total . | . . . . . . . . . . . . . Derelict Logs Recovered 5 | . . 1 . 1 . . . . 1 . 2 . Drone Launches . | . . . . . . . . . . . . . Drone Recoveries . | . . . . . . . . . . . . . Exploration | -11 -10 -10 -9 -9 -9 -8 -8 -7 -7 -7 -7 -7 ------------- Run | Yrd Mat Min Mat Min Exi Min Mat Fac Low Low Zio Dee Turns Passed 12110 | 149 855 401 1896 662 891 218 367 1668 676 508 1576 2243 Spaces Moved 7818 | 80 682 264 1264 526 741 138 231 915 371 272 1011 1323 Core 3 | 3 . . . . . . . . . . . . Treads . | . . . . . . . . . . . . . Legs . | . . . . . . . . . . . . . Wheels 7815 | 77 682 264 1264 526 741 138 231 915 371 272 1011 1323 Hover . | . . . . . . . . . . . . . Flight . | . . . . . . . . . . . . . Fastest Speed 50 | 50 95 125 110 110 100 115 130 130 160 145 145 130 Average Speed 129 | 91 107 125 112 110 114 129 130 139 160 159 145 145 Slowest Speed 210 | 95 125 125 155 110 130 130 130 210 160 160 145 160 Overloaded Moves . | . . . . . . . . . . . . . Propulsion Burnouts . | . . . . . . . . . . . . . Robots Hopped . | . . . . . . . . . . . . . Potential Cave-ins . | . . . . . . . . . . . . . Cave-ins Triggered . | . . . . . . . . . . . . . Exploration Rate (%) 59 | 4 96 45 97 91 90 23 25 26 65 43 85 80 Regions Visited 12 Branch Regions 8 Pre-discovered Areas 3 | . . . . . 1 . . . 1 . 1 . Known Exits Taken . | . . . . . . . . . . . . . Unknown Exits Taken 12 | 1 1 1 1 1 1 1 1 1 1 1 1 . Scrap Searched 4 | . . . . 1 . . . . . 2 1 . Spaces Dug 29 | . . . 29 . . . . . . . . . Terrain Destroyed 384 | . 33 . 132 . . 5 52 46 24 13 . 79 Melee . | . . . . . . . . . . . . . Projectile 51 | . . . . . . . . 20 14 3 . 14 AOE 333 | . 33 . 132 . . 5 52 26 10 10 . 65 Terrain Rammed . | . . . . . . . . . . . . . Walls Destroyed . | . . . . . . . . . . . . . Machines Disabled . | . . . . . . . . . . . . . Actions | -11 -10 -10 -9 -9 -9 -8 -8 -7 -7 -7 -7 -7 --------- Run | Yrd Mat Min Mat Min Exi Min Mat Fac Low Low Zio Dee Total 9159 | 115 767 323 1568 569 785 155 278 1193 416 325 1068 1597 Wait 416 | 2 14 38 116 24 1 3 2 37 15 18 12 134 Move 7806 | 79 681 263 1263 525 740 137 230 914 370 271 1010 1323 Hop . | . . . . . . . . . . . . . Pick Up 113 | 8 19 4 19 . 13 1 9 25 . 4 4 7 Fast Attach 52 | 7 2 . 5 . 2 . 1 21 . 2 2 10 Attach 35 | . . . 6 . 3 1 2 12 . 2 4 5 Detach 22 | . . . 3 . 2 . . 13 . 2 1 1 Swap 96 | 1 7 3 26 . 2 2 6 26 5 1 3 14 Drop 161 | . 17 6 25 . 10 . 9 47 . 5 5 37 Fire 373 | 18 27 9 105 20 . 11 19 68 21 20 . 55 Melee 13 | . . . . . 12 . . . . . . 1 Ram . | . . . . . . . . . . . . . Kick . | . . . . . . . . . . . . . Crush . | . . . . . . . . . . . . . Escape Stasis . | . . . . . . . . . . . . . Rewire 5 | . . . . . . . . . 5 . . . Trap 40 | . . . . . . . . 30 . . . 10 Miscellaneous 27 | . . . . . . . . . . . 27 . Route ------- -11/Scrapyard -10/Materials (discovered 3 exits: *Mat x2 / *Min) -10/Mines -9/Materials (discovered 4 exits: *Mat x3 / [*Min]) -9/Mines (discovered 3 exits: *Mat x2 / *Exi) -9/Exiles -8/Mines -8/Materials -7/Factory (discovered 2 exits: Sto / [*Low]) -7/Lower Caves -7/Lower Caves -7/Zion (discovered 2 exits: [*Dee] / [*Pro]) -7/Deep Caves (discovered 1 exit: [*Pro]) History --------- Turn | Location | Event 13 | -11/Scrapyard | Discovered new exit (range 16) 150 | -11/Scrapyard | Entered Materials 288 | -10/Materials | Discovered new exit (range 3) 306 | -10/Materials | Build established: Mutant 467 | -10/Materials | Discovered new exit (range 11) 536 | -10/Materials | Core integrity fell below 50% 748 | -10/Materials | Central database locked down 821 | -10/Materials | Discovered new exit (range 13) 1005 | -10/Materials | Entered Mines 1164 | -10/Mines | Learned Materials stockpile data 1215 | -10/Mines | Assembled infested the area 1220 | -10/Mines | Assisted by a Guerilla fighting off Assembled 1231 | -10/Mines | Assisted by bots powering up and referring to "LRC-V3" 1257 | -10/Mines | Met a Derelict who couldn't figure out how to use a Trap Extractor 1323 | -10/Mines | Discovered new exit (range 16) 1406 | -10/Mines | Entered Materials 1406 | -9/Materials | Accompanied by 3 allies 1406 | -9/Materials | Evolved 2 slots: Utility x2 1679 | -9/Materials | Discovered new exit (range 12) 1943 | -9/Materials | Discovered new exit (range 10) 2384 | -9/Materials | Discovered new exit (range 3) 2606 | -9/Materials | First assault squad dispatched 2669 | -9/Materials | Destroyed 13 combat bots 2718 | -9/Materials | Discovered new exit (range 15) 3204 | -9/Materials | Repaired Broken Remote Shield 3237 | -9/Materials | Repaired Mni. Grenade Launcher 3302 | -9/Materials | Entered Mines 3369 | -9/Mines | Discovered new exit (range 14) 3527 | -9/Mines | Received a Rocket Launcher from a helpful Derelict 3540 | -9/Mines | Deemed a non-threat by the Exiles lab entrance 3542 | -9/Mines | Discovered new exit (range 5) 3595 | -9/Mines | Discovered new exit (range 8) 3800 | -9/Mines | A weapon hastily lodged in a ceiling crevice suddenly fell to the ground 3964 | -9/Mines | Entered Exiles 3992 | -9/Exiles | Met 8R-AWN 4011 | -9/Exiles | Met EX-HEX 4054 | -9/Exiles | Met EX-BIN 4068 | -9/Exiles | Aligned with FarCom system 4069 | -9/Exiles | Given EX-Vault access code 4095 | -9/Exiles | Opened EX-Vault 4104 | -9/Exiles | Found Latent Energy Streamer 4116 | -9/Exiles | Found Chronowheel 4128 | -9/Exiles | Found AWS/Thermal 4151 | -9/Exiles | Warned to stay clear of 0b10 Research branches 4187 | -9/Exiles | Met EX-DEC 4193 | -9/Exiles | Learned location of Zion (-7) 4587 | -9/Exiles | Visited The Gauntlet 4836 | -9/Exiles | Discovered new exit (range 14) 4855 | -9/Exiles | Stole three prototypes: Chronowheel, AWS/Thermal, Latent Energy Streamer 4855 | -9/Exiles | Entered Mines 4857 | -8/Mines | Core integrity fell below 50% 4917 | -8/Mines | Discovered new exit (range 10) 5073 | -8/Mines | Entered Materials 5073 | -8/Materials | Evolved 2 slots: Power x1, Utility x1 5416 | -8/Materials | Discovered new exit (range 16) 5440 | -8/Materials | Entered Factory 5440 | -7/Factory | Accompanied by 1 ally 5440 | -7/Factory | Evolved 2 slots: Power x1, Utility x1 5441 | -7/Factory | Identified exit to Storage 5442 | -7/Factory | FarCom data flow suspended 5837 | -7/Factory | Build established: Hacker-Mutant 6281 | -7/Factory | Found Powered Armor 6285 | -7/Factory | Found Powered Armor 6289 | -7/Factory | Found Powered Armor 6292 | -7/Factory | Found Powered Armor 6295 | -7/Factory | Found Powered Armor 6351 | -7/Factory | Build established: Trapper-Mutant 6580 | -7/Factory | Cargo convoy interrupted 6617 | -7/Factory | Destroyed 9 combat bots 6728 | -7/Factory | Discovered new exit (range 15) 6847 | -7/Factory | Build established: Mutant 7028 | -7/Factory | High security lockdown imminent 7108 | -7/Factory | High security lockdown engaged 7108 | -7/Factory | Entered Lower Caves 7109 | -7/Lower Caves | Encountered a Warlord checkpoint 7131 | -7/Lower Caves | Attracted the attention of an 0b10 outpost 7763 | -7/Lower Caves | Discovered new exit (range 13) 7784 | -7/Lower Caves | Entered another Lower Caves area 7784 | -7/Lower Caves | Accompanied by 1 ally 7994 | -7/Lower Caves | Spotted B-75 Beast 8017 | -7/Lower Caves | Allies destroyed B-75 Beast 8122 | -7/Lower Caves | Spotted X7-6XR(f) 8123 | -7/Lower Caves | Encountered a Master Thief 8123 | -7/Lower Caves | Spotted PD-IH5(f) 8124 | -7/Lower Caves | Encountered a Master Thief 8124 | -7/Lower Caves | Spotted LL-2BJ(f) 8125 | -7/Lower Caves | Encountered a Master Thief 8125 | -7/Lower Caves | Spotted 0T-0XT(f) 8125 | -7/Lower Caves | Activated Chronowheel 8126 | -7/Lower Caves | Encountered a Master Thief 8128 | -7/Lower Caves | AWS/Thermal stolen by Master Thief 8129 | -7/Lower Caves | Allies destroyed X7-6XR(f) 8130 | -7/Lower Caves | System corruption reached 10% 8135 | -7/Lower Caves | Destroyed PD-IH5(f) 8152 | -7/Lower Caves | Allies destroyed 0T-0XT(f) 8230 | -7/Lower Caves | Discovered new exit (range 11) 8292 | -7/Lower Caves | Entered Zion 8336 | -7/Zion | System corruption cleaned by Quarantine Array 8388 | -7/Zion | Given the Hacking Drone Bay 8388 | -7/Zion | Found Prototype Device 8440 | -7/Zion | Discovered new exit (range 15) 8598 | -7/Zion | Gained Derelict followers 8663 | -7/Zion | Learned Factory emergency access door positions 8844 | -7/Zion | Met Imprinter 8979 | -7/Zion | Learned Factory emergency access door positions 9092 | -7/Zion | Learned location of Warlord (-5) 9428 | -7/Zion | Identified Hacking Drone Bay 9441 | -7/Zion | Found Prototype Device 9822 | -7/Zion | Discovered new exit (range 3) 9822 | -7/Zion | Saw the warning signs outside the Deep Caves entrance 9868 | -7/Zion | Entered Deep Caves 9868 | -7/Deep Caves | Accompanied by 2 allies 9909 | -7/Deep Caves | Identified Bomb Factory No. 2 10283 | -7/Deep Caves | Attacked by Z-Imprinter 10291 | -7/Deep Caves | Destroyed Z-Imprinter 10645 | -7/Deep Caves | Z-Facility disabled 11364 | -7/Deep Caves | Discovered new exit (range 10) 12009 | -7/Deep Caves | Spotted AG-14935 12011 | -7/Deep Caves | Exposed GOLEM chamber 12012 | -7/Deep Caves | Triggered Deep Caves wall 12019 | -7/Deep Caves | Destroyed AG-14935 12070 | -7/Deep Caves | System corruption reached 30% 12073 | -7/Deep Caves | Spotted AG-09202 12086 | -7/Deep Caves | Destroyed AS-72351 12095 | -7/Deep Caves | Core integrity fell below 50% 12105 | -7/Deep Caves | Core integrity fell below 20% 12111 | -7/Deep Caves | Destroyed by as-41432 with Assembled Shotgun Last Messages --------------- 12097_ Powered Armor destroyed. 12097_ as-49277 destroyed. 12098_ AG-82111 GOLEM Unit beginning Prototype Leg integration. 12099_ System corrupted: Antimatter Cannon jammed. 12101_ System corrupted: Component data lost. 12101_ Rnf. Deuterium Engine destroyed. 12101_ Zio. Light DM Reactor destroyed. 12101_ Arm. Huge Wheel destroyed. 12106_ Player 2 drops Hvy. Ion Engine. Player 2: "I've got just what you need here." 12107_ Remote Force Field destroyed. 12107_ Latent Energy Streamer destroyed. 12107_ Imp. Cooling System destroyed. 12108_ System corrupted: Hvy. Proton Missile Launcher failed to launch. 12110_ Zio. Light DM Reactor destroyed. 12110_ Imp. Deuterium Engine destroyed. 12110_ Slug penetrates AG-82111. Map ----- +----------------------------------------------------+ | ???????????????????????????????????????? | | ???????????????????????????????????????? | | ???????????????????????????????##???????# | | ??????????????????????????????## ??????## | | ?????????????????????????????## ?????## | | ?????????????????????????????# ?????# | | ?????????????????????????????# ????## | | ?????????????????????????????# ##?## #? | | ?????????????????????????????# ### ## | | ?????????????????? ?????# | | ???????????????? ????# | | ?????????????* ???## | | ??????????? ! #???## ### | | ?????????% !G g ! ##??# ### | | ????????? ! #??# ## | | ????????% b #??## | | ???????? a !h #???# ##### | | ???????## % ag! ! #???# #???## # | | ???????!G% #???# #????## ## | | ??????? % #???# #?????## #? | | ??????# ! #???# #??????###? | | ??????# GG% ##??# #?????????? | | ??????#G G@ h #?## ####??????? | | ????????#% * [ ### ##?????? | | ????????" %[ ## ###???? | | ????????" @] ## #?# | | ????????"% ! ## | | ????????""" =% | | ????????" * | | ????????"" ;; # | | ????????" ## ## | | ????????"" ;## ##? | | ????????" # # #### #?? | | ????????" #### ## ## ##??######## ? | | ????????""" ##???# ?# ####???????????# ##?? | | ?????????? ?????##?# #???????????????###??? | | ?????????####??????????#?????????????????????? | | | | | | | | | | | | | | | | | | | | | | | | | | | +----------------------------------------------------+ Best States ------------- Heat Dissipation 87 Energy Generation 60 Energy Capacity 1680 Matter Stores 300 Matter Capacity 300 Sight Range 20 Terrain Scan Density 10 Armor Coverage 450 Resistance: KI 20 Resistance: TH 10 Utility Shielding 66 Evasion (%) 41 Recoil Reduction 1 Offensive Hacking 20 Trap Extractor Capacity 6 Item Schematics ----------------- Med. Storage Unit | -10/Materials | Hacked Trap Extractor | -9/Materials | Hacked Lgt. Humpback | -7/Factory | Scanalyzed Robot Schematics ------------------ None Fabricated ------------ Nothing Repaired ---------- Remote Shield | 76% | -9/Materials | Broken Mni. Grenade Launcher | 48% | -9/Materials Alien Tech Used ----------------- None Achievements -------------- None Challenges ------------ None Player 2 | -11 -10 -10 -9 -9 -9 -8 -8 -7 -7 -7 -7 -7 ---------- Run | Yrd Mat Min Mat Min Exi Min Mat Fac Low Low Zio Dee Slots Evolved 6 | . . 2 . . . 2 2 . . . . . Power . | . . . . . . . . . . . . . Propulsion 1 | . . 1 . . . . . . . . . . Utility 4 | . . 1 . . . 2 1 . . . . . Weapon 1 | . . . . . . . 1 . . . . . Parts Attached 66 | . 12 2 24 . 1 . 2 19 1 1 . 4 Parts Lost 6 | . . . 2 . . . . 2 . . . 2 Damage Taken 1869 | . 94 . 530 42 . 30 . 553 111 164 . 345 Core 357 | . 41 . 114 20 . 7 . 23 15 47 . 90 Player 2/Cogmind (%) 30 | . 28 . 68 62 . 100 . 19 60 100 . 17 Absorbed by Shields 372 | . . . . . . . . 148 57 91 . 76 Damage Inflicted 12494 | . 284 44 1135 228 . 124 290 4242 1031 788 . 4328 Player 2/Cogmind (%) 42 | . 26 22 21 35 . 39 32 48 48 44 . 51 Combat Hostiles Destroyed 97 | . 3 1 10 5 . 2 3 27 5 3 . 38 Player 2/Cogmind (%) 43 | . 30 33 23 38 . 50 37 51 31 42 . 55 Game ------ Seed CoilReactiveLog Manual? 0 Play Time 01:44:17 Cumulative 287.8 hours Start 2025.06.21 @ 15:57:33 End 2025.06.21 @ 17:40:24 Sessions 2 Manual Loads 0 Difficulty Rogue Special Mode AFD2020/Player2 Game No. 257 Rogue 257 Adventurer 0 Explorer 0 Win Type - Total 2 Types 1/1/0/0/0/0/0/0/0/0 Lore% 76 Gallery% 80 Achievement% 72 Wizard Run 0 Options --------- Layout 1 ASCII 0 Keyboard 0 Movement Numpad Keybinds 0 Fullscreen 1 Font 24/Smallcaps Map View 50x35 Zoom Use 0% Tactical HUD 1 Map Filters NONE Filters NONE Steam 1 RUN: a609f7c8-35b2-4292-90ef-4173adb294fb